[Event "XVII MetLife Najdorf Open 2017"]
[Site "Warsaw"]
[Date "2017.07.15"]
[Round "7"]
[White "Yogesh, Gautam"]
[Black "Paszewski, Mateusz"]
[Result "0-1"]
[ECO "B71"]
[WhiteElo "2243"]
[BlackElo "2323"]
[Annotator "NA RC"]
[PlyCount "96"]
[EventDate "2017.??.??"]
[EventType "swiss"]
[EventCountry "POL"]
[SourceTitle "playchess.com"]
[Source "ChessBase"]
[SourceQuality "1"]
[TimeControl "40/5400+30:1800+30"]

1. e4 {[%emt 0:00:00]} c5 {[%emt 0:00:19]} 2. Nf3 {[%emt 0:00:31]} d6 {[%emt 0:00:02]} 3. d4 {[%emt 0:00:05]} cxd4 {[%emt 0:00:01]} 4. Nxd4 {[%emt 0:00:03]} Nf6 {[%emt 0:00:03]} 5. Nc3 {[%emt 0:00:05]} g6 {[%emt 0:00:03]} 6. f4 {[%emt 0:00:04]} Nc6 {[%emt 0:00:02]} 7. Nxc6 {[%emt 0:00:05]} bxc6 {[%emt 0:00:02]} 8. e5 {[%emt 0:00:05]} Nd7 {[%emt 0:00:17]} 9. exd6 {[%emt 0:00:02]} exd6 {[%emt 0:00:03]} 10. Be3 {[%emt 0:00:06]} Be7 {[%emt 0:01:02]} 11. Qd2 {[%emt 0:00:01]} O-O {[%emt 0:04:52]} 12. O-O-O {[%emt 0:00:37]} Rb8 {[%emt 0:28:03]} 13. Kb1 {[%emt 0:12:23]} d5 {[%emt 0:07:16]} 14. f5 {[%emt 0:16:17]} Qa5 {[%emt 0:08:37]} 15. Bd4 {[%emt 0:07:26]} Bf6 {[%emt 0:14:26]} 16. b3 {[%emt 0:15:11]} Bxd4 {[%emt 0:04:26]} 17. Qxd4 {[%emt 0:00:03]} Nc5 {[%emt 0:00:13]} 18. g4 {[%emt 0:13:57]} Rb4 {[%emt 0:05:51]} 19. Qd2 {[%emt 0:05:18]} d4 {[%emt 0:07:45]} 20. Ne2 {[%emt 0:00:07]} d3 {[%emt 0:00:30]} 21. Nd4 {[%emt 0:04:04]} Ne4 {[%emt 0:06:25]} 22. Qxd3 {[%emt 0:02:15]} Nf2 {[%emt 0:02:10]} 23. Nxc6 {[%emt 0:03:46]} Nxd3 {[%emt 0:04:17]} 24. Nxa5 {[%emt 0:00:01]} Nf2 {[%emt 0:00:01]} 25. Bc4 {[%emt 0:04:47]} gxf5 {[%emt 0:00:58]} 26. gxf5 {[%emt 0:02:55]} Nxh1 {[%emt 0:00:04]} 27. Rxh1 {[%emt 0:00:22]} Bxf5 {[%emt 0:00:09]} 28. Rg1+ {[%emt 0:01:29]} Bg6 {[%emt 0:00:26]} 29. Re1 {[%emt 0:00:29]} Rb6 {[%emt 0:01:39]} 30. Re7 {[%emt 0:01:41]} Rf6 {[%emt 0:00:18]} 31. Re2 {[%emt 0:01:27]} Rc8 {[%emt 0:01:22]} 32. Kb2 {[%emt 0:00:34]} Kf8 {[%emt 0:00:42]} 33. b4 {[%emt 0:01:33]} Rf4 {[%emt 0:01:08]} 34. Kb3 {[%emt 0:01:15]} f6 {[%emt 0:01:37]} 35. Bd5 {[%emt 0:01:12]} Rf1 {[%emt 0:01:12]} 36. c4 {[%emt 0:01:31]} f5 {[%emt 0:00:09]} 37. Nc6 {[%emt 0:01:28]} f4 {[%emt 0:00:45]} 38. Nxa7 {[%emt 0:01:36]} Re8 {[%emt 0:00:31]} 39. Rd2 {[%emt 0:03:31]} f3 {[%emt 0:01:28]} 40. Rd4 {[%emt 0:00:00]} f2 {[%emt 0:00:38]} 41. Ka4 {[%emt 0:04:07]} Kg7 {[%emt 0:11:42]} 42. Rd2 {[%emt 0:00:02]} Rf8 {[%emt 0:01:34]} 43. c5 {[%emt 0:00:12]} Rc1 {[%emt 0:02:14]} 44. Bg2 {[%emt 0:00:05]} Be4 {[%emt 0:00:35]} 45. Bh3 {[%emt 0:00:31]} Rf7 {[%emt 0:06:14]} 46. Nc8 {[%emt 0:03:17]} Rc2 {[%emt 0:01:30]} 47. Rd1 {[%emt 0:00:43]} Rc3 {[%emt 0:00:53]} 48. Bf1 {[%emt 0:00:26]} Bc2+ {[%emt 0:00:06]} 0-1

[Event "XVII MetLife Najdorf Open 2017"]
[Site "Warsaw"]
[Date "2017.07.15"]
[Round "7"]
[White "Kowalczyk, Rafal"]
[Black "Schroeder, Kevin"]
[Result "0-1"]
[ECO "B10"]
[WhiteElo "2240"]
[BlackElo "2321"]
[Annotator "NA RC"]
[PlyCount "98"]
[EventDate "2017.??.??"]
[EventType "swiss"]
[EventCountry "POL"]
[SourceTitle "playchess.com"]
[Source "ChessBase"]
[SourceQuality "1"]
[TimeControl "40/5400+30:1800+30"]

1. e4 {[%emt 0:03:29]} c6 {[%emt 0:00:05]} 2. Ne2 {[%emt 0:01:53]} g6 {[%emt 0:00:19]} 3. d4 {[%emt 0:00:48]} Bg7 {[%emt 0:00:11]} 4. g3 {[%emt 0:01:51]} d5 {[%emt 0:00:08]} 5. Nbc3 {[%emt 0:08:13]} dxe4 {[%emt 0:03:51]} 6. Nxe4 {[%emt 0:00:09]} Bg4 {[%emt 0:01:41]} 7. Bg2 {[%emt 0:00:39]} Nf6 {[%emt 0:00:49]} 8. Nxf6+ {[%emt 0:02:20]} Bxf6 {[%emt 0:00:33]} 9. c3 {[%emt 0:00:26]} e5 {[%emt 0:00:33]} 10. h3 {[%emt 0:12:25]} Bf5 {[%emt 0:02:35]} 11. Be3 {[%emt 0:11:07]} Nd7 {[%emt 0:01:43]} 12. d5 {[%emt 0:04:31]} cxd5 {[%emt 0:02:28]} 13. Bxd5 {[%emt 0:00:50]} Qe7 {[%emt 0:01:09]} 14. Bxb7 {[%emt 0:11:57]} Rb8 {[%emt 0:02:02]} 15. Qd5 {[%emt 0:00:08]} O-O {[%emt 0:02:15]} 16. b3 {[%emt 0:20:54]} Rfd8 {[%emt 0:01:42]} 17. Bc6 {[%emt 0:08:41]} Rbc8 {[%emt 0:03:43]} 18. Qg2 {[%emt 0:02:46]} e4 {[%emt 0:02:29]} 19. Bxd7 {[%emt 0:00:09]} Qxd7 {[%emt 0:00:03]} 20. g4 {[%emt 0:01:24]} Rxc3 {[%emt 0:03:12]} 21. O-O {[%emt 0:01:42]} Rxe3 {[%emt 0:02:10]} 22. fxe3 {[%emt 0:00:25]} Bxa1 {[%emt 0:01:13]} 23. Rxa1 {[%emt 0:01:53]} Be6 {[%emt 0:00:23]} 24. Qxe4 {[%emt 0:00:20]} Qd2 {[%emt 0:01:40]} 25. Nf4 {[%emt 0:00:20]} Bc8 {[%emt 0:04:44]} 26. Rf1 {[%emt 0:02:59]} Qd7 {[%emt 0:04:13]} 27. Qe5 {[%emt 0:00:39]} Bb7 {[%emt 0:00:26]} 28. Rf2 {[%emt 0:00:29]} Qc6 {[%emt 0:00:33]} 29. e4 {[%emt 0:00:32]} Re8 {[%emt 0:01:18]} 30. Qa1 {[%emt 0:00:30]} Qxe4 {[%emt 0:00:16]} 31. Kh2 {[%emt 0:00:28]} Rc8 {[%emt 0:01:16]} 32. Qd1 {[%emt 0:00:30]} Qe3 {[%emt 0:01:07]} 33. Qd2 {[%emt 0:00:30]} Qb6 {[%emt 0:00:31]} 34. Re2 {[%emt 0:00:31]} Qc6 {[%emt 0:00:17]} 35. Re1 {[%emt 0:00:31]} Qf3 {[%emt 0:01:24]} 36. Re2 {[%emt 0:00:28]} Qh1+ {[%emt 0:02:41]} 37. Kg3 {[%emt 0:00:01]} Qg1+ {[%emt 0:00:43]} 38. Kh4 {[%emt 0:00:52]} Qa1 {[%emt 0:07:48]} 39. Qb2 {[%emt 0:00:37]} Qxb2 {[%emt 0:01:07]} 40. Rxb2 {[%emt 0:00:00]} Rc3 {[%emt 0:00:15]} 41. g5 {[%emt 0:05:57]} Bc8 {[%emt 0:00:31]} 42. Rh2 {[%emt 0:03:07]} h6 {[%emt 0:03:12]} 43. gxh6 {[%emt 0:06:39]} Kh7 {[%emt 0:00:19]} 44. Nd5 {[%emt 0:11:50]} Rf3 {[%emt 0:00:08]} 45. Ne7 {[%emt 0:01:19]} Be6 {[%emt 0:00:14]} 46. Rg2 {[%emt 0:01:42]} Kxh6 {[%emt 0:00:34]} 47. Ng8+ {[%emt 0:00:05]} Kh7 {[%emt 0:00:19]} 48. Ne7 {[%emt 0:00:12]} f6 {[%emt 0:00:19]} 49. Rh2 {[%emt 0:00:32]} Kh6 {[%emt 0:00:12]} 0-1

[Event "XVII MetLife Najdorf Open 2017"]
[Site "Warsaw"]
[Date "2017.07.15"]
[Round "7"]
[White "Michalczak, Thomas"]
[Black "Paramzina, Anastasya"]
[Result "1/2-1/2"]
[ECO "B22"]
[WhiteElo "2239"]
[BlackElo "2166"]
[Annotator "NA RC"]
[PlyCount "141"]
[EventDate "2017.??.??"]
[EventType "swiss"]
[EventCountry "POL"]
[SourceTitle "playchess.com"]
[Source "ChessBase"]
[SourceQuality "1"]
[TimeControl "40/5400+30:1800+30"]

1. e4 c5 2. c3 Nf6 3. e5 Nd5 4. Nf3 d6 5. d4 cxd4 6. cxd4 Nc6 7. Bc4 dxe5 8. Nxe5 e6 9. O-O Bd6 10. Nf3 O-O 11. Nc3 b6 12. Re1 Nce7 13. Bd3 h6 14. Qe2 Nb4 15. Bh7+ Kxh7 16. Qe4+ Nf5 17. Qxa8 Nc2 18. Bd2 Nxa1 19. Rxa1 Qd7 20. Rd1 b5 21. a3 Bb7 22. Qxa7 Ra8 23. Qb6 Bxf3 24. gxf3 Rb8 25. Qa6 Nxd4 26. Be3 Bc5 27. Bxd4 Bxd4 28. a4 e5 29. axb5 Qh3 30. Qd6 Re8 31. Qd5 Re6 32. Kh1 Rd6 33. Qe4+ f5 34. Qe2 e4 35. fxe4 Be5 36. f3 Rxd1+ 37. Nxd1 Bxh2 38. exf5 Be5+ 39. Kg1 Bd4+ 40. Nf2 Bxf2+ 41. Kxf2 Qh2+ 42. Ke1 Qg1+ 43. Kd2 Qc5 44. Qd3 Kh8 45. Qd8+ Kh7 46. Qd3 Kh8 47. b3 h5 48. Qd8+ Kh7 49. Qg5 Qd5+ 50. Kc2 Qxf3 51. Qg6+ Kh8 52. b6 h4 53. f6 Qc6+ 54. Kb2 gxf6 55. Qh5+ Kg7 56. Qg4+ Kf7 57. Qh5+ Ke6 58. Qg4+ Kf7 59. Qc4+ Qxc4 60. bxc4 h3 61. b7 h2 62. b8=Q h1=Q 63. Qc7+ Ke6 64. c5 Qd5 65. Ka3 Qd7 66. Qb6+ Kd5 67. Kb4 f5 68. Qb8 f4 69. Qa8+ Qc6 70. Qxc6+ Kxc6 71. Kc4 1/2-1/2

[Event "XVII MetLife Najdorf Open 2017"]
[Site "Warsaw"]
[Date "2017.07.15"]
[Round "7"]
[White "Khalafova, Narmin"]
[Black "Kiolbasa, Oliwia"]
[Result "1/2-1/2"]
[ECO "D00"]
[WhiteElo "2224"]
[BlackElo "2253"]
[Annotator "NA RC"]
[PlyCount "116"]
[EventDate "2017.??.??"]
[EventType "swiss"]
[EventCountry "POL"]
[SourceTitle "playchess.com"]
[Source "ChessBase"]
[SourceQuality "1"]
[TimeControl "40/5400+30:1800+30"]

1. d4 {[%emt 0:05:06]} d5 {[%emt 0:06:29]} 2. Bf4 {[%emt 0:00:30]} Nf6 {[%emt 0:00:44]} 3. e3 {[%emt 0:02:31]} c5 {[%emt 0:02:47]} 4. c3 {[%emt 0:00:29]} Nc6 {[%emt 0:00:06]} 5. Nd2 {[%emt 0:01:04]} Bf5 {[%emt 0:06:05]} 6. Qb3 {[%emt 0:01:37]} Qb6 {[%emt 0:06:41]} 7. dxc5 {[%emt 0:05:26]} Qxb3 {[%emt 0:01:05]} 8. Nxb3 {[%emt 0:01:36]} e5 {[%emt 0:13:11]} 9. Bg3 {[%emt 0:01:25]} Ne4 {[%emt 0:03:37]} 10. Bb5 {[%emt 0:06:56]} f6 {[%emt 0:00:55]} 11. Na5 {[%emt 0:04:39]} Bd7 {[%emt 0:02:53]} 12. Nxb7 {[%emt 0:05:40]} Rb8 {[%emt 0:01:05]} 13. Bxc6 {[%emt 0:00:20]} Bxc6 {[%emt 0:00:36]} 14. Na5 {[%emt 0:00:09]} Ba8 {[%emt 0:01:58]} 15. O-O-O {[%emt 0:14:10]} Bxc5 {[%emt 0:02:21]} 16. Ne2 {[%emt 0:05:22]} O-O {[%emt 0:01:15]} 17. Kb1 {[%emt 0:03:36]} Rfc8 {[%emt 0:05:02]} 18. Nb3 {[%emt 0:05:29]} Bf8 {[%emt 0:02:34]} 19. f3 {[%emt 0:03:21]} Nxg3 {[%emt 0:04:25]} 20. Nxg3 {[%emt 0:06:07]} Rb5 {[%emt 0:07:15]} 21. Ka1 {[%emt 0:04:13]} a5 {[%emt 0:08:02]} 22. Nc1 {[%emt 0:03:28]} Rcb8 {[%emt 0:01:23]} 23. Rd2 {[%emt 0:04:02]} a4 {[%emt 0:05:07]} 24. Nce2 {[%emt 0:03:10]} Bc5 {[%emt 0:06:53]} 25. e4 {[%emt 0:01:24]} Be3 {[%emt 0:03:27]} 26. Rc2 {[%emt 0:02:40]} g6 {[%emt 0:03:43]} 27. Rd1 {[%emt 0:01:09]} Rc8 {[%emt 0:00:36]} 28. Kb1 {[%emt 0:03:31]} Bb7 {[%emt 0:01:23]} 29. c4 {[%emt 0:02:00]} dxc4 {[%emt 0:01:00]} 30. Nc3 {[%emt 0:00:35]} Rb4 {[%emt 0:01:43]} 31. a3 {[%emt 0:00:12]} Rb3 {[%emt 0:00:16]} 32. Rd6 {[%emt 0:01:12]} Rc6 {[%emt 0:00:29]} 33. Rd8+ {[%emt 0:00:16]} Kg7 {[%emt 0:00:14]} 34. Rd7+ {[%emt 0:00:19]} Kf8 {[%emt 0:01:17]} 35. Nd5 {[%emt 0:00:53]} Bd4 {[%emt 0:00:39]} 36. Nb4 {[%emt 0:01:08]} Rb6 {[%emt 0:00:13]} 37. Ne2 {[%emt 0:00:38]} Bc5 {[%emt 0:00:31]} 38. Nc1 {[%emt 0:00:54]} Bxb4 {[%emt 0:00:31]} 39. Nxb3 {[%emt 0:00:39]} axb3 {[%emt 0:00:28]} 40. Rxc4 {[%emt 0:00:00]} Bd6 {[%emt 0:00:34]} 41. Rxh7 {[%emt 0:07:51]} Rc6 {[%emt 0:06:51]} 42. Rc3 {[%emt 0:04:18]} Rxc3 {[%emt 0:00:55]} 43. bxc3 {[%emt 0:00:07]} Ba6 {[%emt 0:00:23]} 44. Kb2 {[%emt 0:00:50]} Be7 {[%emt 0:03:08]} 45. Rh8+ {[%emt 0:06:28]} Kg7 {[%emt 0:00:33]} 46. Rb8 {[%emt 0:02:19]} Bf1 {[%emt 0:00:15]} 47. a4 {[%emt 0:04:55]} Bxg2 {[%emt 0:00:24]} 48. a5 {[%emt 0:00:09]} Bxf3 {[%emt 0:00:05]} 49. a6 {[%emt 0:00:30]} Bxe4 {[%emt 0:00:29]} 50. a7 {[%emt 0:01:06]} f5 {[%emt 0:02:48]} 51. Kxb3 {[%emt 0:02:17]} f4 {[%emt 0:00:56]} 52. a8=Q {[%emt 0:03:10]} Bxa8 {[%emt 0:00:02]} 53. Rxa8 {[%emt 0:00:05]} Kf6 {[%emt 0:01:48]} 54. Kc4 {[%emt 0:01:23]} Kf5 {[%emt 0:01:50]} 55. Re8 {[%emt 0:00:36]} Bf6 {[%emt 0:01:10]} 56. Kd3 {[%emt 0:00:45]} e4+ {[%emt 0:03:44]} 57. Rxe4 {[%emt 0:00:17]} Bxc3 {[%emt 0:00:01]} 58. Re8 {[%emt 0:01:04]} Bb2 {[%emt 0:04:35]} 1/2-1/2

[Event "XVII MetLife Najdorf Open 2017"]
[Site "Warsaw"]
[Date "2017.07.15"]
[Round "7"]
[White "Zaleski, Lukasz"]
[Black "Mulet, Piotr"]
[Result "1/2-1/2"]
[ECO "C15"]
[WhiteElo "2220"]
[BlackElo "2307"]
[Annotator "NA RC"]
[PlyCount "148"]
[EventDate "2017.??.??"]
[EventType "swiss"]
[EventCountry "POL"]
[SourceTitle "playchess.com"]
[Source "ChessBase"]
[SourceQuality "1"]
[TimeControl "40/5400+30:1800+30"]

1. e4 {[%emt 0:00:00]} e6 {[%emt 0:00:07]} 2. d4 {[%emt 0:00:00]} d5 {[%emt 0:00:06]} 3. Nc3 {[%emt 0:00:12]} Bb4 {[%emt 0:00:44]} 4. exd5 {[%emt 0:00:38]} exd5 {[%emt 0:00:04]} 5. Bd3 {[%emt 0:00:23]} Nf6 {[%emt 0:03:47]} 6. Nge2 {[%emt 0:01:05]} O-O {[%emt 0:01:02]} 7. Bg5 {[%emt 0:01:28]} h6 {[%emt 0:04:38]} 8. Bh4 {[%emt 0:00:29]} c6 {[%emt 0:00:08]} 9. f3 {[%emt 0:01:12]} b6 {[%emt 0:03:22]} 10. O-O {[%emt 0:05:17]} Ba6 {[%emt 0:00:55]} 11. Bxa6 {[%emt 0:12:23]} Nxa6 {[%emt 0:00:04]} 12. Qd3 {[%emt 0:00:42]} Nc7 {[%emt 0:00:01]} 13. Nd1 {[%emt 0:02:29]} Re8 {[%emt 0:02:27]} 14. c3 {[%emt 0:00:41]} Be7 {[%emt 0:02:48]} 15. Ne3 {[%emt 0:03:34]} Nh5 {[%emt 0:01:02]} 16. Bg3 {[%emt 0:04:43]} Bg5 {[%emt 0:15:12]} 17. f4 {[%emt 0:04:59]} Bh4 {[%emt 0:11:01]} 18. Nf5 {[%emt 0:01:12]} Bxg3 {[%emt 0:00:11]} 19. Nexg3 {[%emt 0:03:12]} Nxg3 {[%emt 0:04:37]} 20. Nxg3 {[%emt 0:07:54]} Nb5 {[%emt 0:02:12]} 21. f5 {[%emt 0:07:14]} Qg5 {[%emt 0:05:52]} 22. Rae1 {[%emt 0:01:12]} Rxe1 {[%emt 0:00:08]} 23. Rxe1 {[%emt 0:00:05]} Nd6 {[%emt 0:00:03]} 24. b3 {[%emt 0:03:42]} b5 {[%emt 0:02:59]} 25. Qe3 {[%emt 0:08:42]} Re8 {[%emt 0:06:34]} 26. Qxg5 {[%emt 0:01:21]} Rxe1+ {[%emt 0:00:06]} 27. Kf2 {[%emt 0:00:04]} hxg5 {[%emt 0:00:09]} 28. Kxe1 {[%emt 0:00:03]} a5 {[%emt 0:00:49]} 29. Ke2 {[%emt 0:01:46]} Kf8 {[%emt 0:00:17]} 30. Kf3 {[%emt 0:00:37]} Ke7 {[%emt 0:01:37]} 31. Kg4 {[%emt 0:01:14]} f6 {[%emt 0:01:07]} 32. h4 {[%emt 0:03:21]} gxh4 {[%emt 0:08:01]} 33. Kxh4 {[%emt 0:00:05]} b4 {[%emt 0:00:11]} 34. cxb4 {[%emt 0:00:25]} axb4 {[%emt 0:00:02]} 35. Kg4 {[%emt 0:00:33]} Nb5 {[%emt 0:00:10]} 36. Ne2 {[%emt 0:00:15]} Nc3 {[%emt 0:00:15]} 37. Nc1 {[%emt 0:00:28]} Kf7 {[%emt 0:05:00]} 38. Kf4 {[%emt 0:01:30]} Kg8 {[%emt 0:00:39]} 39. g4 {[%emt 0:01:26]} Kf7 {[%emt 0:01:05]} 40. g5 {[%emt 0:00:00]} fxg5+ {[%emt 0:00:07]} 41. Kxg5 {[%emt 0:01:20]} Ne4+ {[%emt 0:02:21]} 42. Kf4 {[%emt 0:05:04]} Nc3 {[%emt 0:03:00]} 43. Nd3 {[%emt 0:07:44]} Nxa2 {[%emt 0:00:05]} 44. Kg5 {[%emt 0:00:38]} Nc3 {[%emt 0:03:11]} 45. Ne5+ {[%emt 0:03:13]} Kf8 {[%emt 0:01:17]} 46. Nxc6 {[%emt 0:00:14]} Ne4+ {[%emt 0:00:18]} 47. Kf4 {[%emt 0:01:04]} Nd2 {[%emt 0:00:34]} 48. Na5 {[%emt 0:01:57]} Kf7 {[%emt 0:08:19]} 49. Ke5 {[%emt 0:00:25]} Nf3+ {[%emt 0:00:04]} 50. Kxd5 {[%emt 0:00:19]} Kf6 {[%emt 0:00:02]} 51. Ke4 {[%emt 0:02:41]} Ng5+ {[%emt 0:00:40]} 52. Kf4 {[%emt 0:00:26]} Nh3+ {[%emt 0:00:24]} 53. Kg4 {[%emt 0:07:08]} Nf2+ {[%emt 0:00:17]} 54. Kf3 {[%emt 0:00:05]} Nh3 {[%emt 0:00:21]} 55. Kg3 {[%emt 0:00:50]} Ng5 {[%emt 0:00:06]} 56. Kg4 {[%emt 0:00:37]} Nf7 {[%emt 0:00:07]} 57. Kf4 {[%emt 0:02:50]} Nd6 {[%emt 0:00:15]} 58. Nc6 {[%emt 0:00:34]} Nxf5 {[%emt 0:00:15]} 59. Ke4 {[%emt 0:00:39]} g5 {[%emt 0:01:23]} 60. Nxb4 {[%emt 0:00:08]} g4 {[%emt 0:06:45]} 61. Nc2 {[%emt 0:03:41]} g3 {[%emt 0:01:38]} 62. Ne1 {[%emt 0:06:06]} Ke6 {[%emt 0:03:28]} 63. Ng2 {[%emt 0:00:53]} Nd6+ {[%emt 0:00:59]} 64. Ke3 {[%emt 0:00:55]} Nf5+ {[%emt 0:01:21]} 65. Kd3 {[%emt 0:00:26]} Kd5 {[%emt 0:00:42]} 66. Nf4+ {[%emt 0:00:07]} Kd6 {[%emt 0:00:07]} 67. Ke4 {[%emt 0:01:18]} Nh4 {[%emt 0:00:26]} 68. Ne2 {[%emt 0:01:09]} g2 {[%emt 0:00:28]} 69. b4 {[%emt 0:01:00]} Ng6 {[%emt 0:00:21]} 70. b5 {[%emt 0:00:44]} Nf8 {[%emt 0:02:09]} 71. Kf3 {[%emt 0:01:54]} Nd7 {[%emt 0:00:13]} 72. Kxg2 {[%emt 0:00:05]} Kd5 {[%emt 0:00:05]} 73. Kf3 {[%emt 0:00:10]} Kc4 {[%emt 0:00:06]} 74. Ke4 {[%emt 0:00:17]} Kxb5 {[%emt 0:00:28]} 1/2-1/2

[Event "XVII MetLife Najdorf Open 2017"]
[Site "Warsaw"]
[Date "2017.07.15"]
[Round "7"]
[White "Bus, Konrad"]
[Black "Kucza, Karol"]
[Result "1-0"]
[ECO "A13"]
[WhiteElo "2219"]
[BlackElo "2297"]
[Annotator "RC"]
[PlyCount "94"]
[EventDate "2017.??.??"]
[EventType "swiss"]
[EventCountry "POL"]
[SourceTitle "playchess.com"]
[Source "ChessBase"]
[SourceQuality "1"]
[TimeControl "40/5400+30:1800+30"]

1. c4 {[%emt 0:00:00]} e6 {[%emt 0:00:23]} 2. Nf3 {[%emt 0:00:00]} d5 {[%emt 0:00:15]} 3. d4 {[%emt 0:00:07]} Nf6 {[%emt 0:00:51]} 4. g3 {[%emt 0:00:20]} Bb4+ {[%emt 0:00:40]} 5. Bd2 {[%emt 0:00:56]} Be7 {[%emt 0:00:08]} 6. Bg2 {[%emt 0:00:29]} O-O {[%emt 0:00:17]} 7. O-O {[%emt 0:00:42]} c6 {[%emt 0:00:24]} 8. Bf4 {[%emt 0:01:43]} dxc4 {[%emt 0:04:18]} 9. Ne5 {[%emt 0:01:53]} Nd5 {[%emt 0:00:59]} 10. Nxc4 {[%emt 0:01:00]} Nxf4 {[%emt 0:00:10]} 11. gxf4 {[%emt 0:00:04]} b6 {[%emt 0:08:39]} 12. Nc3 {[%emt 0:03:27]} Qc7 {[%emt 0:02:47]} 13. e3 {[%emt 0:03:32]} Ba6 {[%emt 0:00:41]} 14. b3 {[%emt 0:03:44]} Nd7 {[%emt 0:02:00]} 15. Qc2 {[%emt 0:05:20]} b5 {[%emt 0:08:26]} 16. Nb2 {[%emt 0:06:23]} b4 {[%emt 0:08:25]} 17. Ne2 {[%emt 0:04:33]} Rac8 {[%emt 0:00:01]} 18. Rfd1 {[%emt 0:07:14]} c5 {[%emt 0:05:14]} 19. Rac1 {[%emt 0:06:07]} Nb6 {[%emt 0:09:19]} 20. dxc5 {[%emt 0:05:13]} Qxc5 {[%emt 0:00:34]} 21. Qxc5 {[%emt 0:01:07]} Rxc5 {[%emt 0:00:44]} 22. Nd4 {[%emt 0:01:37]} Rfc8 {[%emt 0:19:17]} 23. Rxc5 {[%emt 0:02:54]} Bxc5 {[%emt 0:02:02]} 24. Bf1 {[%emt 0:06:35]} Bb7 {[%emt 0:11:25]} 25. Bg2 {[%emt 0:02:39]} Bxg2 {[%emt 0:00:08]} 26. Kxg2 {[%emt 0:00:16]} Nd5 {[%emt 0:00:42]} 27. Rc1 {[%emt 0:04:22]} Nc3 {[%emt 0:00:47]} 28. Na4 {[%emt 0:06:32]} Bxd4 {[%emt 0:04:21]} 29. exd4 {[%emt 0:01:20]} Rc7 {[%emt 0:02:53]} 30. Kf3 {[%emt 0:04:56]} Nb5 {[%emt 0:00:16]} 31. Rxc7 {[%emt 0:00:39]} Nxc7 {[%emt 0:00:01]} 32. Ke4 {[%emt 0:01:54]} Kf8 {[%emt 0:00:07]} 33. Kd3 {[%emt 0:04:00]} Ke7 {[%emt 0:00:24]} 34. Kc4 {[%emt 0:00:43]} Kd6 {[%emt 0:01:09]} 35. Kxb4 {[%emt 0:04:40]} Kd5 {[%emt 0:01:33]} 36. Nc3+ {[%emt 0:01:59]} Kxd4 {[%emt 0:00:46]} 37. Nb5+ {[%emt 0:01:28]} Nxb5 {[%emt 0:00:06]} 38. Kxb5 {[%emt 0:00:01]} f5 {[%emt 0:00:55]} 39. Kc6 {[%emt 0:07:53]} Kc3 {[%emt 0:05:39]} 40. a4 {[%emt 0:00:00]} Kb4 {[%emt 0:02:12]} 41. h4 {[%emt 0:09:48]} a6 {[%emt 0:06:20]} 42. Kb6 {[%emt 0:01:49]} a5 {[%emt 0:01:31]} 43. Ka6 {[%emt 0:02:08]} g6 {[%emt 0:00:13]} 44. Kb6 {[%emt 0:00:55]} h6 {[%emt 0:00:09]} 45. Ka6 {[%emt 0:00:45]} e5 {[%emt 0:06:53]} 46. fxe5 {[%emt 0:00:16]} Kc5 {[%emt 0:00:01]} 47. Kxa5 {[%emt 0:01:43]} g5 {[%emt 0:00:15]} 1-0

[Event "XVII MetLife Najdorf Open 2017"]
[Site "Warsaw"]
[Date "2017.07.15"]
[Round "7"]
[White "Zherebtsova, Alexandra"]
[Black "Omar, Noaman"]
[Result "0-1"]
[ECO "A09"]
[WhiteElo "2219"]
[BlackElo "2354"]
[Annotator "NA RC"]
[PlyCount "96"]
[EventDate "2017.??.??"]
[EventType "swiss"]
[EventCountry "POL"]
[SourceTitle "playchess.com"]
[Source "ChessBase"]
[SourceQuality "1"]
[TimeControl "40/5400+30:1800+30"]

1. Nf3 {[%emt 0:00:00]} d5 {[%emt 0:01:45]} 2. c4 {[%emt 0:00:00]} d4 {[%emt 0:01:25]} 3. b4 {[%emt 0:00:42]} c5 {[%emt 0:01:44]} 4. bxc5 {[%emt 0:06:12]} Nc6 {[%emt 0:00:19]} 5. g3 {[%emt 0:01:08]} e5 {[%emt 0:00:14]} 6. d3 {[%emt 0:00:23]} Bxc5 {[%emt 0:00:31]} 7. Bg2 {[%emt 0:00:49]} Nf6 {[%emt 0:00:06]} 8. O-O {[%emt 0:01:21]} O-O {[%emt 0:00:29]} 9. Nbd2 {[%emt 0:03:14]} h6 {[%emt 0:00:20]} 10. Nb3 {[%emt 0:07:37]} Be7 {[%emt 0:02:54]} 11. Bb2 {[%emt 0:08:15]} Bg4 {[%emt 0:03:21]} 12. Qd2 {[%emt 0:12:13]} Bb4 {[%emt 0:10:04]} 13. Qc1 {[%emt 0:03:20]} Re8 {[%emt 0:00:36]} 14. h3 {[%emt 0:03:01]} Be6 {[%emt 0:00:56]} 15. e3 {[%emt 0:08:35]} dxe3 {[%emt 0:08:02]} 16. Qxe3 {[%emt 0:00:05]} Qd7 {[%emt 0:00:27]} 17. Kh2 {[%emt 0:03:59]} Bf5 {[%emt 0:04:02]} 18. Rfd1 {[%emt 0:04:46]} Rad8 {[%emt 0:00:46]} 19. a3 {[%emt 0:05:48]} Bd6 {[%emt 0:00:30]} 20. Nh4 {[%emt 0:02:38]} Bh7 {[%emt 0:01:55]} 21. Qc1 {[%emt 0:06:16]} b6 {[%emt 0:07:33]} 22. Qc3 {[%emt 0:05:18]} Bc5 {[%emt 0:01:22]} 23. Nxc5 {[%emt 0:01:38]} bxc5 {[%emt 0:00:03]} 24. Rab1 {[%emt 0:01:40]} Rb8 {[%emt 0:03:50]} 25. Nf3 {[%emt 0:02:58]} Rb6 {[%emt 0:03:04]} 26. Ba1 {[%emt 0:04:55]} Rxb1 {[%emt 0:00:48]} 27. Rxb1 {[%emt 0:00:04]} Nd4 {[%emt 0:07:21]} 28. Nxd4 {[%emt 0:03:37]} exd4 {[%emt 0:00:04]} 29. Qd2 {[%emt 0:00:39]} Qf5 {[%emt 0:00:30]} 30. Rb3 {[%emt 0:01:16]} h5 {[%emt 0:02:18]} 31. Bb2 {[%emt 0:00:49]} h4 {[%emt 0:01:47]} 32. Bc1 {[%emt 0:01:26]} hxg3+ {[%emt 0:00:37]} 33. fxg3 {[%emt 0:00:03]} Bg6 {[%emt 0:00:50]} 34. Qf4 {[%emt 0:00:54]} Re1 {[%emt 0:03:51]} 35. Qxf5 {[%emt 0:01:09]} Bxf5 {[%emt 0:00:03]} 36. Bf4 {[%emt 0:00:18]} Rd1 {[%emt 0:00:20]} 37. Rb5 {[%emt 0:00:28]} Nd7 {[%emt 0:04:00]} 38. Bc6 {[%emt 0:00:33]} Rxd3 {[%emt 0:00:55]} 39. g4 {[%emt 0:00:26]} Be6 {[%emt 0:01:22]} 40. Rb7 {[%emt 0:00:00]} g5 {[%emt 0:08:41]} 41. Bxg5 {[%emt 0:18:24]} Ne5 {[%emt 0:00:58]} 42. Be4 {[%emt 0:01:01]} Rxa3 {[%emt 0:00:39]} 43. Be7 {[%emt 0:11:53]} Re3 {[%emt 0:02:56]} 44. Bg2 {[%emt 0:01:22]} d3 {[%emt 0:01:20]} 45. Rb1 {[%emt 0:00:36]} d2 {[%emt 0:00:58]} 46. Rd1 {[%emt 0:00:06]} Nxc4 {[%emt 0:00:14]} 47. Bxc5 {[%emt 0:00:17]} Re1 {[%emt 0:01:09]} 48. Bf3 {[%emt 0:00:10]} Ne5 {[%emt 0:00:23]} 0-1